Workbook

Sheet Anexo IV - Planilha Custos
B1: Ministério da Integração e do Desenvolvimento Regional - M I D R Companhia de Desenvolvimento dos Vales do São Francisco e do Parnaíba 12ª Superintendência Regional
A6: Anexo IV: Planilha de Custos
A9: Município/UF: Nata/RN
A10: Ano Acordo, Convenção Coletiva ou Sentença Normativa em Dissídio Coletivo: 2023/2024
A11: Nº de meses de execução contratual: 12 meses
A13: Tipo de Posto | B13: Quantidade de Postos | C13: Valor Unitário Mensal (R$) | D13: Preço Máximo Mensal (R$) | E13: Preço Máximo Anual (R$)
A15: Vigilância 12x36 (Diurno) | C15: =IFERROR('Posto Diurno'!F136,"") -> 0 | D15: =IFERROR(B15*C15,"") -> 0 | E15: =IFERROR(D15*12,"") -> 0
A16: Vigilância 12x36 (Noturno) | C16: =IFERROR('Posto Noturno'!F136,"") -> 0 | D16: =IFERROR(B16*C16,"") -> 0 | E16: =IFERROR(D16*12,"") -> 0
A17: Valor Máximo Mensal do Contrato (1 Posto Diurno e 1 Posto Noturno) | E17: =IFERROR(D15+D16,"") -> 0
A18: Valor Máximo Anual do Contrato (12 meses) | E18: =IFERROR(E17*12,"") -> 0

Sheet Posto Diurno
B5: POSTO DIURNO
B7: Item | C7: Posto | D7: Custo Estimado por posto | E7: Quantidade de postos | F7: Valor mensal | G7: Valor anual
B9: 1 | C9: Vigilante (sem adicional noturno) | D9: =F136 -> 0 | F9: =F145 -> 0 | G9: =F146 -> 0
B11: PLANILHA DE COMPOSIÇÃO DE CUSTOS E FORMAÇÃO DE PREÇOS
B13: Mão-de-obra vinculada à execução contratual
B14: Dados complementares para composição dos custos referente à mão-de-obra
B15: 1 | C15: Tipo de serviço | D15: Vigilância
B16: 2 | C16: Salário normativo da categoria profissional | D16: 0
B17: 3 | C17: Categoria profissional | D17: Vigilância
B18: 4 | C18: Data base da categoria
B20: Módulo 1: Composição da Remuneração
B21: 1 | C21: Composição da Remuneração | E21: Valor (R$)
B22: A | C22: Salário Base | E22: 0
B23: B | C23: Adicional de periculosidade | D23: 0.3 | E23: =D23*E22 -> 0
B24: C | C24: Adicional de insalubridade | D24: 0 | E24: 0
B25: D | C25: Adicional noturno | D25: 0.2
B26: E | C26: Hora noturna adicional | D26: 0 | E26: 0
B27: F | C27: Adicional de risco de vida | D27: 0 | E27: =E22*D27 -> 0
B28: G | C28: Intervalo intrajornada | E28: =SUM(E22:E23)/220*1.5*15 -> 0
B29: Total da Remuneração | E29: =E22+E23+E24+E25+E26+E27+E28 -> 0
B31: Módulo 2: Benefícios Mensais e diários
B32: 2 | C32: Benefícios Mensais e Diários | E32: Valor (R$)
B33: A | C33: Transporte | E33: 0
B34: C | C34: Auxílio alimentação | E34: 0
B35: D | C35: Plano de saúde | D35: 0 | E35: 0
B36: E | C36: Auxílio creche | E36: 0
B37: F | C37: Seguro de vida | E37: 0
B38: G | C38: Auxílio invalidez | E38: 0
B39: H | C39: Auxílio funeral
B40: I | C40: Outros (Exames Médicos) | E40: 0
B41: Total de benefícios mensais e diários | E41: =SUM(E33:E40) -> 0
B43: Módulo 3: Insumos Diversos
B44: 3 | C44: Insumos diversos | E44: Valor (R$)
B45: A | C45: Uniformes | E45: 0
B46: B | C46: Materiais | E46: 0
B47: C | C47: Equipamentos | E47: 0
B48: D | C48: Outros (Especificar) | E48: 0
B49: Total de Insumos Diversos | E49: =SUM(E45:E48) -> 0
B51: Módulo 4: Encargos Sociais e Trabalhistas
B52: Submódulo 4.1 – Encargos previdenciários e FGTS
B53: 4.1 | C53: Encargos previdenciários e FGTS | D53: % | E53: Valor (R$)
B54: A | C54: INSS | D54: 0.2 | E54: =E29*0.2 -> 0
B55: B | C55: SESI OU SESC | D55: 0.015 | E55: =E29*0.015 -> 0
B56: C | C56: SENAI OU SENAC | D56: 0.01 | E56: =E29*0.01 -> 0
B57: D | C57: INCRA | D57: 0.002 | E57: =E29*0.002 -> 0
B58: E | C58: Salário Educação | D58: 0.025 | E58: =E29*0.025 -> 0
B59: F | C59: FGTS | D59: 0.08 | E59: =E29*0.08 -> 0
B60: G | C60: Seguro Acidente de Trabalho | D60: 0.03 | E60: =E29*0.03 -> 0
B61: H | C61: SEBRAE | D61: 0.006 | E61: =E29*0.006 -> 0
B62: Total | D62: =SUM(D54:D61) -> 0.368 | E62: =SUM(E54:E61) -> 0
B64: Submódulo 4.2 – 13º salário e Adicional de Férias
B65: 4.2 | C65: 13º Salário e Adicional de Férias | E65: Valor (R$)
B66: A | C66: 13º Salário | D66: =5/56 -> 0.08928571429 | E66: =D66*E29 -> 0
B67: B | C67: Adicional de Férias | D67: =(1/3)*D66 -> 0.02976190476 | E67: =E29*D67 -> 0
B68: Subtotal | D68: =D66+D67 -> 0.119047619 | E68: =SUM(E66:E67) -> 0
B69: C | C69: Incidência do Submódulo 4.1 sobre 13º salário e adicional de férias | D69: =D62 -> 0.368 | E69: =D69*E68 -> 0
B70: Total | D70: =SUM(D68:D69) -> 0.487047619 | E70: =SUM(E68:E69) -> 0
B72: Submódulo 4.3 – Afastamento Maternidade
B73: 4.3 | C73: Afastamento Maternidade | E73: Valor (R$)
B74: A | C74: Afastamento Maternidade | D74: 0.0137 | E74: =E29*D74 -> 0
B75: B | C75: Incidência do submódulo 4.1 sobre afastamento maternidade | D75: =D62*D74 -> 0.0050416 | E75: =E74*D75 -> 0
B76: Total | D76: =SUM(D74:D75) -> 0.0187416 | E76: =SUM(E74:E75) -> 0
B78: Submódulo 4.4 – Provisão para Rescisão
B79: 4.4 | C79: Provisão para Rescisão | E79: Valor (R$)
B80: A | C80: Aviso prévio Indenizado | D80: =((1/12)* 0.05) -> 0.004166666667 | E80: =E29*D80 -> 0
B81: B | C81: Incidência do FGTS sobre aviso prévio indenizado (provisão para rescisão) | D81: =D59*D80 -> 0.0003333333333 | E81: =E29*D81 -> 0
B82: C | C82: Multa do FGTS do aviso prévio indenizado (manual) | D82: =0.08*0.5*0.9*(1 + 5/56+5/56+1/3*5/56) -> 0.0435 | E82: =D82*E29 -> 0
B83: D | C83: Aviso prévio trabalhado (manual) | D83: =((7/30)/12)*0.02 -> 0.0003888888889 | E83: =E29*D83 -> 0
B84: E | C84: Incidência do submódulo 4.1 sobre aviso prévio trabalhado | D84: =D62 -> 0.368 | E84: =E83*D62 -> 0
B85: F | C85: Multa FGTS do aviso prévio trabalhado | D85: =(40%)*D59 -> 0.032 | E85: =D85*E83 -> 0
B86: Total | D86: =SUM(D80:D85) -> 0.4483888889 | E86: =SUM(E80:E85) -> 0
B88: Submódulo 4.5 – Custo de Reposição do Profissional Ausente
B89: 4.5 | C89: Composição do custo de Reposição do Profissional Ausente | E89: Valor (R$)
B90: A | C90: Férias | D90: =(5/56) -> 0.08928571429 | E90: =E29*D90 -> 0
B91: B | C91: Ausência por doença | D91: =(5.96/30)/12 -> 0.01655555556 | E91: =E29*D91 -> 0
B92: C | C92: Licença paternidade | D92: =((5/30)/12)*0.015 -> 0.0002083333333 | E92: =E29*D92 -> 0
B93: D | C93: Ausências legais | D93: =(2.96/30)*(1/12) -> 0.008222222222 | E93: =E29*D93 -> 0
B94: E | C94: Ausência por acidente de trabalho | D94: =((15/30)/12)*0.0078 -> 0.000325 | E94: =E29*D94 -> 0
B95: F | C95: Outros | D95: 0 | E95: 0
B96: Subtotal | D96: =SUM(D90:D95) -> 0.1145968254 | E96: =SUM(E90:E95) -> 0
B97: G | C97: Incidência do submódulo 4.1 sobre o Custo de reposição | D97: =D62 -> 0.368 | E97: =E96*D97 -> 0
B98: Total | D98: =SUM(D96:D97) -> 0.4825968254 | E98: =SUM(E96:E97) -> 0
B100: Quadro – resumo – Módulo 4 – Encargos sociais e trabalhistas
B101: 4 | C101: Encargos Sociais e Trabalhistas | E101: Valor (R$)
B102: 4.1 | C102: 13º salário+Adicional de Férias | E102: =E70 -> 0
B103: 4.2 | C103: Encargos Previdenciários e FGTS | E103: =E62 -> 0
B104: 4.3 | C104: Afastamento Maternidade | E104: =E76 -> 0
B105: 4.4 | C105: Custo de Rescisão | E105: =E86 -> 0
B106: 4.5 | C106: Custo de Reposição do Profissional Ausente | E106: =E98 -> 0
B107: 4.6 | C107: Outros | E107: 0
B108: Total | E108: =SUM(E102:E107) -> 0
B110: Módulo 5: Custos indiretos, tributos e lucro
B111: 5 | C111: Custos Indiretos, Tributos e Lucro | D111: % | E111: Valor (R$)
B112: A | C112: Custos Indiretos (Portaria nº 7 da IN nº2/2008) | D112: 0.05 | E112: =E129*D112 -> 0
B113: B | C113: Tributos
B114: B.1 | C114: Tributos Federais
B115: B.1.1 | C115: PIS (depende do regime de tributação) | D115: 0.0065 | E115: =(E129+E112+E120)*D115 -> 0
B116: B.1.1 | C116: COFINS (depende do regime de tributação) | D116: 0.03 | E116: =(E129+E112+E120)*D116 -> 0
B117: B.2 | C117: Tributos Estaduais (ISS) | D117: 0.05 | E117: =(E129+E112+E120)*D117 -> 0
B118: B.3 | C118: Tributos Municipais | E118: 0
B119: B.4 | C119: Outros Tributos | E119: 0
B120: C | C120: Lucro | D120: 0.05 | E120: =(E29+E41+E49+E108)*D120 -> 0
B121: Total | E121: =SUM(E112:E120) -> 0
B123: Anexo III – B – Quadro resumo do custo por empregado
B124: Mão-de-obra vinculada à execução contratual (valor por empregado) | E124: Valor (R$)
B125: A | C125: Módulo 1- Composição da Remuneração | E125: =E29 -> 0
B126: B | C126: Módulo 2- Benefícios Mensais e Diários | E126: =E41 -> 0
B127: C | C127: Módulo 3- Insumos Diversos (uniformes, materiais, equipamentos e outros) | E127: =E49 -> 0
B128: D | C128: Módulo 4- Encargos Sociais e Trabalhistas | E128: =E108 -> 0
B129: Subtotal (A+B+C+D) | E129: =SUM(E125:E128) -> 0
B130: E | C130: Módulo 5 – Custos indiretos, tributos e lucro | E130: =E121 -> 0
B131: Valor total por empregado | E131: =SUM(E129:E130) -> 0
B133: Anexo III –C – Quadro-resumo – Valor Mensal dos Serviços
B134: Tipo de serviço | D134: Valor proposto por empregado | E134: Qtde de empregados por posto | F134: Valor proposto por posto | G134: Qtde de postos | H134: Valor total dos serviços
B135: (A) | D135: (B) | E135: (C) | F135: (D)=(BXC) | G135: (E) | H135: (F)=(DxE)
B136: I | C136: Serviço 1 (sem adicional noturno) | D136: =E131 -> 0 | E136: 2 | F136: =ROUND(D136*E136,2) -> 0 | G136: 1 | H136: =ROUND(F136*G136,2) -> 0
B137: II | C137: Serviço 2 (indicar) | D137: 0 | F137: 0 | H137: 0
B139: Valor mensal dos serviços (I+II) | H139: =ROUND(SUM(H136:H138),2) -> 0
B141: Anexo III –D – Quadro-demonstrativo – Valor Global da proposta
B142: Valor global da proposta
C143: Descrição | F143: Valor (R$)
B144: A | C144: Valor proposto por unidade de medida | F144: =F136 -> 0
B145: B | C145: Valor mensal do serviço | F145: =H139 -> 0
B146: C | C146: Valor global da proposta (valor mensal do serviço x nº meses do contrato) | F146: =ROUND(F145*12,2) -> 0

Sheet Posto Noturno
B5: POSTO NOTURNO
B7: Item | C7: Posto | D7: Custo Estimado por posto | E7: Quantidade de postos | F7: Valor mensal | G7: Valor anual
B9: 1 | C9: Vigilante (com adicional noturno) | D9: =F136 -> 0 | F9: =F145 -> 0 | G9: =F146 -> 0
B11: PLANILHA DE COMPOSIÇÃO DE CUSTOS E FORMAÇÃO DE PREÇOS
B13: Mão-de-obra vinculada à execução contratual
B14: Dados complementares para composição dos custos referente à mão-de-obra
B15: 1 | C15: Tipo de serviço | D15: Vigilância
B16: 2 | C16: Salário normativo da categoria profissional | D16: 0
B17: 3 | C17: Categoria profissional | D17: Vigilância
B18: 4 | C18: Data base da categoria
B20: Módulo 1: Composição da Remuneração
B21: 1 | C21: Composição da Remuneração | E21: Valor (R$)
B22: A | C22: Salário Base | E22: 0
B23: B | C23: Adicional de periculosidade | D23: 0.3 | E23: =D23*E22 -> 0
B24: C | C24: Adicional de insalubridade | D24: 0 | E24: 0
B25: D | C25: Adicional noturno | D25: 0 | E25: =(E22+E23)/220*0.2*15*7 -> 0
B26: E | C26: Hora Noturna Reduzida - Súmula 444 | D26: 0 | E26: =(E22+E23+E25)/220*1.5*15 -> 0
B27: F | C27: Adicional de risco de vida | D27: 0 | E27: =E22*D27 -> 0
B28: G | C28: Intervalo intrajornada | E28: =SUM(E22+E23+E25)/220*1.5*15 -> 0
B29: Total da Remuneração | E29: =E22+E23+E24+E25+E26+E27+E28 -> 0
B31: Módulo 2: Benefícios Mensais e diários
B32: 2 | C32: Benefícios Mensais e Diários | E32: Valor (R$)
B33: A | C33: Transporte | E33: 0
B34: C | C34: Auxílio alimentação | E34: 0
B35: D | C35: Plano de saúde | D35: 0 | E35: =D35*E22 -> 0
B36: E | C36: Auxílio creche | E36: 0
B37: F | C37: Seguro de vida | E37: 0
B38: G | C38: Auxílio invalidez | E38: 0
B39: H | C39: Beneficio social | E39: 0
B40: I | C40: Outros (Assiduidade) | E40: 0
B41: Total de benefícios mensais e diários | E41: =SUM(E33:E40) -> 0
B43: Módulo 3: Insumos Diversos
B44: 3 | C44: Insumos diversos | E44: Valor (R$)
B45: A | C45: Uniformes (Cotação no Mercado)
B46: B | C46: Materiais (Cotação no Mercado) | E46: 0
B47: C | C47: Equipamentos (Cotação no Mercado)
B48: D | C48: Outros | E48: 0
B49: Total de Insumos Diversos | E49: =SUM(E45:E48) -> 0
B51: Módulo 4: Encargos Sociais e Trabalhistas
B52: Submódulo 4.1 – Encargos previdenciários e FGTS
B53: 4.1 | C53: Encargos previdenciários e FGTS | D53: % | E53: Valor (R$)
B54: A | C54: INSS | D54: 0.2 | E54: =E29*0.2 -> 0
B55: B | C55: SESI OU SESC | D55: 0.015 | E55: =E29*0.015 -> 0
B56: C | C56: SENAI OU SENAC | D56: 0.01 | E56: =E29*0.01 -> 0
B57: D | C57: INCRA | D57: 0.002 | E57: =E29*0.002 -> 0
B58: E | C58: Salário Educação | D58: 0.025 | E58: =E29*0.025 -> 0
B59: F | C59: FGTS | D59: 0.08 | E59: =E29*0.08 -> 0
B60: G | C60: Seguro Acidente de Trabalho | D60: 0.03 | E60: =E29*0.03 -> 0
B61: H | C61: SEBRAE | D61: 0.006 | E61: =E29*0.006 -> 0
B62: Total | D62: =SUM(D54:D61) -> 0.368 | E62: =SUM(E54:E61) -> 0
B64: Submódulo 4.2 – 13º salário e Adicional de Férias
B65: 4.2 | C65: 13º Salário e Adicional de Férias | E65: Valor (R$)
B66: A | C66: 13º Salário | D66: =5/56 -> 0.08928571429 | E66: =D66*E29 -> 0
B67: B | C67: Adicional de Férias | D67: =(1/3)*D66 -> 0.02976190476 | E67: =E29*D67 -> 0
B68: Subtotal | D68: =D66+D67 -> 0.119047619 | E68: =SUM(E66:E67) -> 0
B69: C | C69: Incidência do Submódulo 4.1 sobre 13º salário e adicional de férias | D69: =D62 -> 0.368 | E69: =D69*E68 -> 0
B70: Total | D70: =SUM(D68:D69) -> 0.487047619 | E70: =SUM(E68:E69) -> 0
B72: Submódulo 4.3 – Afastamento Maternidade
B73: 4.3 | C73: Afastamento Maternidade | E73: Valor (R$)
B74: A | C74: Afastamento Maternidade | D74: 0.0137 | E74: =E29*D74 -> 0
B75: B | C75: Incidência do submódulo 4.1 sobre afastamento maternidade | D75: =D62*D74 -> 0.0050416 | E75: =E74*D75 -> 0
B76: Total | D76: =SUM(D74:D75) -> 0.0187416 | E76: =SUM(E74:E75) -> 0
B78: Submódulo 4.4 – Provisão para Rescisão
B79: 4.4 | C79: Provisão para Rescisão | E79: Valor (R$)
B80: A | C80: Aviso prévio Indenizado | D80: =((1/12)* 0.05) -> 0.004166666667 | E80: =E29*D80 -> 0
B81: B | C81: Incidência do FGTS sobre aviso prévio indenizado (provisão para rescisão) | D81: =D59*D80 -> 0.0003333333333 | E81: =E29*D81 -> 0
B82: C | C82: Multa do FGTS do aviso prévio indenizado (manual) | D82: =0.08*0.5*0.9*(1 + 5/56+5/56+1/3*5/56) -> 0.0435 | E82: =D82*E29 -> 0
B83: D | C83: Aviso prévio trabalhado (manual) | D83: =((7/30)/12)*0.02 -> 0.0003888888889 | E83: =E29*D83 -> 0
B84: E | C84: Incidência do submódulo 4.1 sobre aviso prévio trabalhado | D84: =D62 -> 0.368 | E84: =E83*D62 -> 0
B85: F | C85: Multa FGTS do aviso prévio trabalhado | D85: =(40%)*D59 -> 0.032 | E85: =D85*E83 -> 0
B86: Total | D86: =SUM(D80:D85) -> 0.4483888889 | E86: =SUM(E80:E85) -> 0
B88: Submódulo 4.5 – Custo de Reposição do Profissional Ausente
B89: 4.5 | C89: Composição do custo de Reposição do Profissional Ausente | E89: Valor (R$)
B90: A | C90: Férias | D90: =(5/56) -> 0.08928571429 | E90: =E29*D90 -> 0
B91: B | C91: Ausência por doença | D91: =(5.96/30)/12 -> 0.01655555556 | E91: =E29*D91 -> 0
B92: C | C92: Licença paternidade | D92: =((5/30)/12)*0.015 -> 0.0002083333333 | E92: =E29*D92 -> 0
B93: D | C93: Ausências legais | D93: =(2.96/30)*(1/12) -> 0.008222222222 | E93: =E29*D93 -> 0
B94: E | C94: Ausência por acidente de trabalho | D94: =((15/30)/12)*0.0078 -> 0.000325 | E94: =E29*D94 -> 0
B95: F | C95: Outros | D95: 0 | E95: 0
B96: Subtotal | D96: =SUM(D90:D95) -> 0.1145968254 | E96: =SUM(E90:E95) -> 0
B97: G | C97: Incidência do submódulo 4.1 sobre o Custo de reposição | D97: =D62 -> 0.368 | E97: =E96*D97 -> 0
B98: Total | D98: =SUM(D96:D97) -> 0.4825968254 | E98: =SUM(E96:E97) -> 0
B100: Quadro – resumo – Módulo 4 – Encargos sociais e trabalhistas
B101: 4 | C101: Encargos Sociais e Trabalhistas | E101: Valor (R$)
B102: 4.1 | C102: 13º salário+Adicional de Férias | E102: =E70 -> 0
B103: 4.2 | C103: Encargos Previdenciários e FGTS | E103: =E62 -> 0
B104: 4.3 | C104: Afastamento Maternidade | E104: =E76 -> 0
B105: 4.4 | C105: Custo de Rescisão | E105: =E86 -> 0
B106: 4.5 | C106: Custo de Reposição do Profissional Ausente | E106: =E98 -> 0
B107: 4.6 | C107: Outros | E107: 0
B108: Total | E108: =SUM(E102:E107) -> 0
B110: Módulo 5: Custos indiretos, tributos e lucro
B111: 5 | C111: Custos Indiretos, Tributos e Lucro | D111: % | E111: Valor (R$)
B112: A | C112: Custos Indiretos (Portaria nº 7 da IN nº2/2008) | D112: 0.05 | E112: 0
B113: B | C113: Tributos
B114: B.1 | C114: Tributos Federais
B115: B.1.1 | C115: PIS (depende do regime de tributação) | D115: 0.0065 | E115: 0
B116: B.1.1 | C116: COFINS (depende do regime de tributação) | D116: 0.03 | E116: 0
B117: B.2 | C117: Tributos Estaduais (ISS) | D117: 0.05 | E117: 0
B118: B.3 | C118: Tributos Municipais | E118: 0
B119: B.4 | C119: Outros Tributos | E119: 0
B120: C | C120: Lucro | D120: 0.05 | E120: 0
B121: Total | E121: =SUM(E112:E120) -> 0
B123: Anexo III – B – Quadro resumo do custo por empregado
B124: Mão-de-obra vinculada à execução contratual (valor por empregado) | E124: Valor (R$)
B125: A | C125: Módulo 1- Composição da Remuneração | E125: =E29 -> 0
B126: B | C126: Módulo 2- Benefícios Mensais e Diários | E126: =E41 -> 0
B127: C | C127: Módulo 3- Insumos Diversos (uniformes, materiais, equipamentos e outros) | E127: 0
B128: D | C128: Módulo 4- Encargos Sociais e Trabalhistas | E128: =E108 -> 0
B129: Subtotal (A+B+C+D) | E129: =SUM(E125:E128) -> 0
B130: E | C130: Módulo 5 – Custos indiretos, tributos e lucro | E130: =E121 -> 0
B131: Valor total por empregado | E131: =SUM(E129:E130) -> 0
B133: Anexo III –C – Quadro-resumo – Valor Mensal dos Serviços
B134: Tipo de serviço | D134: Valor proposto por empregado | E134: Qtde de empregados por posto | F134: Valor proposto por posto | G134: Qtde de postos | H134: Valor total dos serviços
B135: (A) | D135: (B) | E135: (C) | F135: (D)=(BXC) | G135: (E) | H135: (F)=(DxE)
B136: I | C136: Serviço 1 (com adicional noturno) | D136: =E131 -> 0 | F136: =ROUND(D136*E136,2) -> 0 | H136: =ROUND(F136*G136,2) -> 0
B137: II | C137: Serviço 2 (indicar) | D137: 0 | F137: 0 | H137: 0
B139: Valor mensal dos serviços (I+II) | H139: =ROUND(SUM(H136:H138),2) -> 0
B141: Anexo III –D – Quadro-demonstrativo – Valor Global da proposta
B142: Valor global da proposta
C143: Descrição | F143: Valor (R$)
B144: A | C144: Valor proposto por unidade de medida | F144: =F136 -> 0
B145: B | C145: Valor mensal do serviço | F145: =H139 -> 0
B146: C | C146: Valor global da proposta (valor mensal do serviço x nº meses do contrato) | F146: =ROUND(F145*12,2) -> 0

Sheet Insumos
B2: DISCRIMINAÇÃO DE UNIFORMES, EPIs e EQUIPAMENTOS
B4: Item | C4: Uniforme | D4: Unid. | E4: Quant. | F4: Preço Unit. | G4: Sub-Total
B5: 1 | C5: Calça social | D5: und | E5: 2 | F5: 0 | G5: =E5*F5 -> 0
B6: 2 | C6: Camisa social | D6: und | E6: 2 | F6: 0 | G6: 0
B7: 3 | C7: Cinto | D7: und | E7: 1 | F7: 0 | G7: 0
B8: 4 | C8: Meia social masculina | D8: par | E8: 1 | F8: 0 | G8: 0
B9: 5 | C9: Bota (cuturno) | D9: par | E9: 1 | F9: 0 | G9: 0
B10: 6 | C10: Quepe ou boné com emblema | D10: und | E10: 1 | F10: 0 | G10: 0
B11: 7 | C11: Crachá de identificação | D11: und | E11: 1 | F11: 0 | G11: 0
B12: Total por ano | G12: =SUM(G5:G11) -> 0
B13: Custo mensal | G13: =ROUND(G12/12,2) -> 0
B15: Item | C15: Material | D15: Unid. | E15: Quant. | F15: Preço Unit. | G15: Sub-Total
B16: 1 | C16: Livro de ocorrência | D16: und | E16: 1 | F16: 0 | G16: =E16*F16 -> 0
B17: 2 | C17: Colete balístico | D17: und | E17: 1 | F17: 0 | G17: =E17*F17 -> 0
B18: 3 | C18: Lanterna recarregável | D18: und | E18: 1 | F18: 0 | G18: =E18*F18 -> 0
B19: Total por ano | G19: =SUM(G16:G18) -> 0
B20: Custo mensal | G20: =ROUND(G19/12,2) -> 0
B22: Item | C22: Equipamento | D22: Unid. | E22: Quant. | F22: Preço Unit. | G22: Sub-Total
B23: 1 | C23: Revólver | D23: und | E23: 1 | F23: 0 | G23: =E23*F23 -> 0
B24: 2 | C24: Munição | D24: conj | E24: 6 | F24: 0 | G24: =E24*F24 -> 0
B25: 3 | C25: Coldre | D25: und | E25: 1 | F25: 0 | G25: =E25*F25 -> 0
B26: 4 | C26: Capa do colete balístico | D26: und | E26: 1 | F26: 0 | G26: =E26*F26 -> 0
B27: Total por ano | G27: =SUM(G23:G26) -> 0
B28: Custo mensal | G28: =ROUND(G27/12,2) -> 0

Sheet Plan1 (hidden)
B2: STONE
B4: Item | C4: Uniforme | D4: Unid. | E4: Quant. | F4: Preço Unit. | G4: Sub-Total
B5: 1 | C5: Calça social | D5: und | E5: 2 | F5: 64 | G5: =E5*F5 -> 128
B6: 2 | C6: Camisa social | D6: und | E6: 2 | F6: 50 | G6: 100
B7: 3 | C7: Cinto | D7: und | E7: 1 | F7: 12 | G7: 12
B8: 4 | C8: Meia social masculina | D8: par | E8: 1 | F8: 3 | G8: 3
B9: 5 | C9: Bota (cuturno) | D9: par | E9: 1 | F9: 75 | G9: 75
B10: 6 | C10: Quepe ou boné com emblema | D10: und | E10: 1 | F10: 12 | G10: 12
B11: 7 | C11: Crachá de identificação | D11: und | E11: 1 | F11: 6.5 | G11: 6.5
B12: Total por ano | G12: =SUM(G5:G11) -> 336.5
B13: Custo mensal | G13: =ROUND(G12/12,2) -> 28.04
B14: Item | C14: Material | D14: Unid. | E14: Quant. | F14: Preço Unit. | G14: Sub-Total
B15: 1 | C15: Livro de ocorrência | D15: und | E15: 1 | F15: 11.25 | G15: =E15*F15 -> 11.25
B16: 2 | C16: Colete balístico | D16: und | E16: 1 | F16: 450 | G16: =E16*F16 -> 450
B17: 3 | C17: Lanterna recarregável | D17: und | E17: 1 | F17: 28 | G17: =E17*F17 -> 28
B18: Total por ano | G18: =SUM(G15:G17) -> 489.25
B19: Custo mensal | G19: =ROUND(G18/12,2) -> 40.77
B20: Item | C20: Equipamento | D20: Unid. | E20: Quant. | F20: Preço Unit. | G20: Sub-Total
B21: 1 | C21: Revólver | D21: und | E21: 1 | F21: 1150 | G21: =E21*F21 -> 1150
B22: 2 | C22: Munição | D22: conj | E22: 1 | F22: 25 | G22: =E22*F22 -> 25
B23: 3 | C23: Coldre | D23: und | E23: 1 | F23: 25 | G23: =E23*F23 -> 25
B24: 4 | C24: Capa do colete balístico | D24: und | E24: 1 | F24: 99 | G24: =E24*F24 -> 99
B25: Total por ano | G25: =SUM(G21:G24) -> 1299
B26: Custo mensal | G26: =ROUND(G25/12,2) -> 108.25
B28: C&S VIGILÂNCIA E SEGURANÇA
B30: Item | C30: Uniforme | D30: Unid. | E30: Quant. | F30: Preço Unit. | G30: Sub-Total
B31: 1 | C31: Calça social | D31: und | E31: 2 | F31: 21.26 | G31: =E31*F31 -> 42.52
B32: 2 | C32: Camisa social | D32: und | E32: 2 | F32: 20.05 | G32: 40.1
B33: 3 | C33: Cinto | D33: und | E33: 1 | F33: 9.11 | G33: 9.11
B34: 4 | C34: Meia social masculina | D34: par | E34: 1 | F34: 6.38 | G34: 6.38
B35: 5 | C35: Bota (cuturno) | D35: par | E35: 1 | F35: 57.71 | G35: 57.71
B36: 6 | C36: Quepe ou boné com emblema | D36: und | E36: 1 | F36: 9.11 | G36: 9.11
B37: 7 | C37: Crachá de identificação | D37: und | E37: 1 | F37: 2.25 | G37: 2.25
B38: Total por ano | G38: =SUM(G31:G37) -> 167.18
B39: Custo mensal | G39: =ROUND(G38/12,2) -> 13.93
B40: Item | C40: Material | D40: Unid. | E40: Quant. | F40: Preço Unit. | G40: Sub-Total
B41: 1 | C41: Livro de ocorrência | D41: und | E41: 1 | F41: 9.11 | G41: =E41*F41 -> 9.11
B42: 2 | C42: Colete balístico | D42: und | E42: 1 | F42: 321.98 | G42: =E42*F42 -> 321.98
B43: 3 | C43: Lanterna recarregável | D43: und | E43: 1 | F43: 82.15 | G43: =E43*F43 -> 82.15
B44: Total por ano | G44: =SUM(G41:G43) -> 413.24
B45: Custo mensal | G45: =ROUND(G44/12,2) -> 34.44
B46: Item | C46: Equipamento | D46: Unid. | E46: Quant. | F46: Preço Unit. | G46: Sub-Total
B47: 1 | C47: Revólver | D47: und | E47: 1 | F47: 2250 | G47: =E47*F47 -> 2250
B48: 2 | C48: Munição | D48: conj | E48: 1 | F48: 7.2 | G48: =E48*F48 -> 7.2
B49: 3 | C49: Coldre | D49: und | E49: 1 | F49: 40.86 | G49: =E49*F49 -> 40.86
B50: 4 | C50: Capa do colete balístico | D50: und | E50: 1 | F50: 0 | G50: =E50*F50 -> 0
B51: Total por ano | G51: =SUM(G47:G50) -> 2298.06
B52: Custo mensal | G52: =ROUND(G51/12,2) -> 191.51
B54: COLABORE
B56: Item | C56: Uniforme | D56: Unid. | E56: Quant. | F56: Preço Unit. | G56: Sub-Total
B57: 1 | C57: Calça social | D57: und | E57: 2 | F57: 45 | G57: =E57*F57 -> 90
B58: 2 | C58: Camisa social | D58: und | E58: 2 | F58: 35 | G58: 70
B59: 3 | C59: Cinto | D59: und | E59: 1 | F59: 8.9 | G59: 8.9
B60: 4 | C60: Meia social masculina | D60: par | E60: 1 | F60: 2.99 | G60: 2.99
B61: 5 | C61: Bota (cuturno) | D61: par | E61: 1 | F61: 55 | G61: 55
B62: 6 | C62: Quepe ou boné com emblema | D62: und | E62: 1 | F62: 13.9 | G62: 13.9
B63: 7 | C63: Crachá de identificação | D63: und | E63: 1 | F63: 8.82 | G63: 8.82
B64: Total por ano | G64: =SUM(G57:G63) -> 249.61
B65: Custo mensal | G65: =ROUND(G64/12,2) -> 20.8
B66: Item | C66: Material | D66: Unid. | E66: Quant. | F66: Preço Unit. | G66: Sub-Total
B67: 1 | C67: Livro de ocorrência | D67: und | E67: 1 | F67: 17.9 | G67: =E67*F67 -> 17.9
B68: 2 | C68: Colete balístico | D68: und | E68: 1 | F68: =AVERAGE(F16,F42) -> 385.99 | G68: =E68*F68 -> 385.99
B69: 3 | C69: Lanterna recarregável | D69: und | E69: 1 | F69: 45 | G69: =E69*F69 -> 45
B70: Total por ano | G70: =SUM(G67:G69) -> 448.89
B71: Custo mensal | G71: =ROUND(G70/12,2) -> 37.41
B72: Item | C72: Equipamento | D72: Unid. | E72: Quant. | F72: Preço Unit. | G72: Sub-Total
B73: 1 | C73: Revólver | D73: und | E73: 1 | G73: =E73*F73 -> 0
B74: 2 | C74: Munição | D74: conj | E74: 1 | G74: =E74*F74 -> 0
B75: 3 | C75: Coldre | D75: und | E75: 1 | G75: =E75*F75 -> 0
B76: 4 | C76: Capa do colete balístico | D76: und | E76: 1 | G76: =E76*F76 -> 0
B77: Total por ano | G77: =SUM(G73:G76) -> 0
B78: Custo mensal | G78: =ROUND(G77/12,2) -> 0
